fUST/lending_fUST_20240622
["ID","MTS","AMOUNT","RATE_DAILY","PERIOD"]
[330135542,1719035434019,-500.0,0.00019178,2]
[330135543,1719035434028,-500.0,0.00019178,2]
[330135544,1719035434037,-500.0,0.00019178,2]
[330135545,1719035434046,-160.74467979,0.00019178,2]
[330135546,1719035434055,-500.0,0.00019178,2]
[330135547,1719035434065,-500.0,0.00019178,2]
[330135548,1719035434074,-500.0,0.00019178,2]
[330135549,1719035434083,-500.0,0.00019178,2]
[330135550,1719035434093,-500.0,0.00019178,2]
[330135551,1719035434103,-500.0,0.00019178,2]
[330135552,1719035434112,-500.0,0.00019178,2]
[330135553,1719035434121,-500.0,0.00019178,2]
[330135554,1719035434131,-500.0,0.00019178,2]
[330135555,1719035434146,-500.0,0.00019178,2]
[330135556,1719035434155,-500.0,0.00019178,2]
[330135557,1719035434165,-500.0,0.00019178,2]
[330135558,1719035434174,-500.0,0.00019178,2]
[330135559,1719035434185,-500.0,0.00019178,2]
[330135560,1719035434194,-187.03155825,0.00019178,2]
[330135561,1719035434204,-330.33890788,0.00019178,2]
[330135562,1719035434214,-293.73301315,0.00019178,2]
[330135591,1719035438306,-377.35956123,0.00018219,2]
[330135594,1719035438320,-347.63261331,0.00018219,2]
[330135595,1719035438330,-206.26698685,0.00019178,2]
[330135597,1719035438340,-500.0,0.00019178,2]
[330135599,1719035438349,-244.05840533,0.00019178,2]
[330135601,1719035438359,-500.0,0.00019178,2]
[330135603,1719035438369,-500.0,0.00019178,2]
[330135605,1719035438380,-500.0,0.00019178,2]
[330135607,1719035438389,-500.0,0.00019178,2]
[330135608,1719035438398,-204.82352184,0.00019178,2]
[330135610,1719035438407,-500.0,0.00019178,2]
[330135612,1719035438416,-500.0,0.00019178,2]
[330135614,1719035438426,-500.0,0.00019178,2]
[330135616,1719035438435,-500.0,0.00019178,2]
[330135618,1719035438444,-500.0,0.00019178,2]
[330135619,1719035438454,-500.0,0.00019178,2]
[330135621,1719035438463,-500.0,0.00019178,2]
[330135623,1719035438472,-500.0,0.00019178,2]
[330135625,1719035438481,-276.773415,0.00019178,2]
[330135626,1719035438490,-500.0,0.00019178,2]
[330135627,1719035438499,-500.0,0.00019178,2]
[330135628,1719035438509,-500.0,0.00019178,2]
[330135630,1719035438518,-500.0,0.00019178,2]
[330135632,1719035438527,-500.0,0.00019178,2]
[330135633,1719035438536,-500.0,0.00019178,2]
[330135635,1719035438546,-500.0,0.00019178,2]
[330135637,1719035438557,-500.0,0.00019178,2]
[330135639,1719035438567,-500.0,0.00019178,2]
[330135640,1719035438577,-500.0,0.00019178,2]
[330135641,1719035438587,-500.0,0.00019178,2]
[330135642,1719035438596,-500.0,0.00019178,2]
[330135643,1719035438605,-500.0,0.00019178,2]
[330135645,1719035438615,-500.0,0.00019178,2]
[330135647,1719035438625,-471.19829371,0.00019178,2]
[330135649,1719035438635,-583.99850158,0.00019178,2]
[330135651,1719035438644,-500.0,0.00019178,2]
[330135652,1719035438653,-500.0,0.00019178,2]
[330135654,1719035438663,-500.0,0.00019178,2]
[330135656,1719035438672,-500.0,0.00019178,2]
[330135658,1719035438681,-374.0923282,0.00019178,2]
[330135666,1719035438794,-149.99852844,0.00019178,2]
[330135667,1719035438804,-500.0,0.00019178,2]
[330135668,1719035438814,-500.0,0.00019178,2]
[330135669,1719035438824,-500.0,0.00019178,2]
[330135670,1719035438834,-335.0,0.00019178,2]
[330135671,1719035438843,-159.03956,0.00019178,2]
[330135672,1719035438853,-728.05775524,0.00019194,2]
[330135673,1719035438862,-159.0395649,0.000192,2]
[330135674,1719035438872,-965.22845179,0.00019384,2]
[330135675,1719035438884,-153.0,0.00019452,2]
[330135676,1719035438894,-500.0,0.00019725,2]
[330135677,1719035438904,-728.05775524,0.00019886,2]
[330135678,1719035438915,-150.0,0.00019916,2]
[330135679,1719035438928,-319.3206112,0.00019916,2]
[330135700,1719035440632,-354.59455097,0.00019916,2]
[330135701,1719035440644,-1078.08483783,0.00019916,2]
[330135702,1719035440654,-292.90827578,0.0002,2]
[330135703,1719035440663,-167.37446479,0.0002,2]
[330135704,1719035440673,-810.89034508,0.0002,2]
[330135705,1719035440682,-244.78941876,0.0002,2]
[330135706,1719035440691,-173.47357852,0.0002,2]
[330135707,1719035440710,-719.04753077,0.0002,2]
[330135710,1719035441208,159.25315055,0.0001792,60]
[330135715,1719035441810,-359.50100004,0.0002,2]
[330135753,1719035443676,-336.86423546,0.0002,2]
[330135755,1719035443685,-5679.93403535,0.0002,2]
[330135756,1719035443697,-4955.14211757,0.0002,2]
[330135819,1719035496992,225.0,0.00026,60]
[330135820,1719035505204,159.25315055,0.00024242,60]
[330135821,1719035571570,10613.68,0.00026,60]
[330135823,1719035813795,2700.0,0.00026,60]
[330137769,1719036103007,-13881.97,0.00022739,30]
[330137771,1719036103044,-13881.97,0.00022739,32]
[330137773,1719036103081,-13881.97,0.00022739,34]
[330137775,1719036103115,-13881.97,0.00022739,36]
[330137777,1719036103149,-13881.97,0.00022739,38]
[330137779,1719036103186,-13881.97,0.00022739,40]
[330137781,1719036103223,-13881.97,0.00022739,40]
[330137782,1719036103261,-13881.97,0.00022739,40]
[330137784,1719036103296,-13881.97,0.00022739,40]
[330137786,1719036103332,-13881.99774313,0.00022739,40]
[330137789,1719036103400,-160.106557,0.00023562,41]
[330137791,1719036103449,-3522.1318634,0.00024,30]
[330137794,1719036103518,-612.73889168,0.00025,30]
[330137798,1719036103613,-254.39699546,0.00027296,60]
[330137799,1719036103653,-500.0,0.00027397,30]
[330137801,1719036103692,-500.0,0.00027397,30]
[330137803,1719036103730,-500.0,0.00027397,30]
[330137805,1719036103768,-500.0,0.00027397,30]
[330137807,1719036103805,-500.0,0.00027397,30]
[330137809,1719036103842,-500.0,0.00027397,30]
[330137811,1719036103880,-500.0,0.00027397,30]
[330137813,1719036103917,-500.0,0.00027397,30]
[330137815,1719036103955,-500.0,0.00027397,30]
[330137817,1719036103990,-500.0,0.00027397,30]
[330137819,1719036104025,-500.0,0.00027397,30]
[330137821,1719036104062,-500.0,0.00027397,30]
[330137823,1719036104097,-500.0,0.00027397,30]
[330137824,1719036104134,-500.0,0.00027397,30]
[330137826,1719036104175,-500.0,0.00027397,30]
[330137828,1719036104211,-500.0,0.00027397,30]
[330137829,1719036104246,-500.0,0.00027397,30]
[330137830,1719036104281,-500.0,0.00027397,30]
[330137831,1719036104315,-620.88546603,0.00027397,30]
[330137832,1719036104356,-400.0,0.00027397,60]
[330137833,1719036104390,-2093.82868954,0.000275,30]
[330137834,1719036104437,-313.32088199,0.000285,120]
[330137836,1719036104474,-526.37880883,0.00028848,90]
[330137838,1719036104509,-1206.55213744,0.00029076,30]
[330137840,1719036104543,-351.57797434,0.0003,30]
[330137842,1719036104577,-124939.796823,0.0003,30]
[330137844,1719036104615,-1590.39,0.00030136,120]
[330137845,1719036104650,-1590.39,0.00030136,120]
[330137847,1719036104683,-1590.39,0.00030136,120]
[330137849,1719036104717,-1590.39,0.00030136,120]
[330137851,1719036104749,-1590.39,0.00030136,120]
[330137853,1719036104783,-1590.39,0.00030136,120]
[330137855,1719036104816,-1590.39,0.00030136,120]
[330137857,1719036104849,-1590.39,0.00030136,120]
[330137859,1719036104881,-1590.39,0.00030136,120]
[330137861,1719036104915,-1590.39,0.00030136,120]
[330137863,1719036104950,-1590.39,0.00030136,120]
[330137864,1719036104985,-1590.39,0.00030136,120]
[330137867,1719036105028,-1590.39,0.00030136,120]
[330137869,1719036105071,-1590.39,0.00030136,120]
[330137871,1719036105107,-1590.39,0.00030136,120]
[330137873,1719036105141,-1590.39,0.00030136,120]
[330137874,1719036105179,-1590.39,0.00030136,120]
[330137876,1719036105216,-1590.39,0.00030136,120]
[330137878,1719036105253,-1590.39,0.00030136,120]
[330137880,1719036105289,-1590.39,0.00030136,120]
[330137882,1719036105325,-1590.39,0.00030136,120]
[330137884,1719036105360,-1590.39,0.00030136,120]
[330137886,1719036105397,-1590.39,0.00030136,120]
[330137888,1719036105432,-1590.45711672,0.00030136,120]
[330137890,1719036105466,-413.05485968,0.00030137,60]
[330137892,1719036105500,-3016.0,0.00030137,60]
[330137894,1719036105543,-5010.94345169,0.00032192,32]
[330137896,1719036105578,-200.0,0.00032196,120]
[330137898,1719036105613,-2451.74808458,0.000325,60]
[330137903,1719036105781,-500.0,0.000337,120]
[330137905,1719036105817,-2000.0,0.000348,30]
[330137907,1719036105852,-6687.54414761,0.00035,120]
[330137909,1719036105885,-4694.61587182,0.00035,120]
[330137911,1719036105919,-216.64766392,0.00035,120]
[330137913,1719036105956,-16833.2823734,0.00035,120]
[330137915,1719036105993,-2413.10427487,0.00035218,120]
[330137917,1719036106028,-59680.74149146,0.00036,30]
[330137919,1719036106063,-500.0,0.000374,120]
[330137921,1719036106098,-6687.54414761,0.00038,120]
[330137923,1719036106134,-4694.61587182,0.00038,120]
[330137924,1719036106170,-5018.136898,0.00038018,64]
[330137926,1719036106206,-1000.0,0.00039,39]
[330137928,1719036106240,-2000.0,0.000398,60]
[330137930,1719036106273,-2000.0,0.000398,50]
[330137932,1719036106308,-866.55961696,0.0004,120]
[330137934,1719036106343,-500.0,0.0004,120]
[330137936,1719036106383,-512.74347973,0.0004,120]
[330137938,1719036106418,-15783.818745,0.0004,30]
[330137940,1719036106457,-5399.361895,0.0004,120]
[330137942,1719036106490,-9122.8347556,0.00040419,72]
[330137944,1719036106523,-5000.0,0.00040419,75]
[330137946,1719036106559,-5000.0,0.00040419,77]
[330137948,1719036106592,-5000.0,0.00040419,77]
[330137950,1719036106628,-200.0,0.00040863,120]
[330137952,1719036106662,-25766.61074424,0.000409,120]
[330137953,1719036106698,-335.5,0.00041041,31]
[330137955,1719036106734,-152.0,0.00041041,31]
[330137957,1719036106769,-482.85577951,0.0004159,30]
[330137959,1719036106803,-263.0,0.00042217,90]
[330137961,1719036106838,-200.0,0.00042397,120]
[330137963,1719036106870,-5688.00484318,0.00043,30]
[330137965,1719036106902,-13375.08829523,0.00043,120]
[330137967,1719036106938,-9389.23174365,0.00043,120]
[330137969,1719036106972,-20000.0,0.00044,30]
[330137970,1719036107008,-500.0,0.00044,120]
[330137972,1719036107045,-159.04401141,0.00044,120]
[330137974,1719036107080,-264.0,0.00044328,90]
[330137976,1719036107115,-2985.97662373,0.00045,120]
[330137978,1719036107149,-156.84277954,0.00045,120]
[330137980,1719036107185,-10855.28726171,0.00045,60]
[330137982,1719036107220,-11633.98959165,0.00045,120]
[330137984,1719036107254,-5000.0,0.00045342,30]
[330137986,1719036107288,-257.34318639,0.000455,120]
[330137988,1719036107322,-16718.86036904,0.00046,120]
[330137990,1719036107358,-11736.53967956,0.00046,120]
[330137992,1719036107392,-5000.0,0.00046027,60]
[330137994,1719036107430,-5000.0,0.00046712,90]
[330137995,1719036107467,-2561.48,0.000468,42]
[330137997,1719036107503,-2561.48,0.000468,42]
[330137999,1719036107538,-2561.48,0.000468,42]
[330138001,1719036107574,-2561.48,0.000468,42]
[330138003,1719036107608,-2561.48,0.000468,42]
[330138005,1719036107642,-2561.48,0.000468,42]
[330138007,1719036107677,-2561.48,0.000468,42]
[330138009,1719036107712,-2561.48,0.000468,42]
[330138011,1719036107744,-2561.48,0.000468,42]
[330138013,1719036107778,-2561.48,0.000468,42]
[330138015,1719036107811,-2561.48,0.000468,42]
[330138016,1719036107844,-2561.48,0.000468,42]
[330138017,1719036107878,-2561.48,0.000468,42]
[330138018,1719036107912,-2561.48,0.000468,42]
[330138019,1719036107946,-2561.48,0.000468,42]
[330138020,1719036107977,-2561.48,0.000468,42]
[330138021,1719036108012,-2561.48,0.000468,42]
[330138022,1719036108048,-2561.48,0.000468,42]
[330138023,1719036108085,-2561.48,0.000468,42]
[330138024,1719036108123,-2561.48,0.000468,42]
[330138025,1719036108157,-263.0,0.00047283,90]
[330138027,1719036108196,-5000.0,0.00047397,120]
[330138029,1719036108231,-1306.0,0.00047898,52]
[330138031,1719036108265,-5816.56,0.00048,60]
[330138033,1719036108300,-2000.0,0.00048,60]
[330138035,1719036108334,-16718.86036904,0.00048,120]
[330138037,1719036108368,-11736.53967956,0.00048,120]
[330138039,1719036108400,-7173.0,0.00048082,120]
[330138041,1719036108433,-138316.60897545,0.0004888,120]
[330138043,1719036108469,-20125.4884898,0.0004888,120]
[330138110,1719036110941,350144.0,0.00026,60]
[330138238,1719036116944,-4613.70710907,0.0004888,120]
[330138240,1719036116981,-3997.97570569,0.00049,70]
[330138242,1719036117020,-1000.0,0.00049,49]
[330138244,1719036117058,-335.5,0.00049278,60]
[330138246,1719036117095,-152.0,0.00049278,60]
[330138248,1719036117132,-14333.48,0.00049315,120]
[330138250,1719036117170,-575.42493606,0.00049315,120]
[330138251,1719036117214,-500.0,0.00049315,30]
[330138253,1719036117250,-600.0,0.00049315,120]
[330138255,1719036117287,-600.0,0.00049315,120]
[330138257,1719036117312,-600.0,0.00049315,120]
[330138259,1719036117340,-602.894818,0.00049315,120]
[330138323,1719036119763,2049.44,0.000468,42]
[330138327,1719036119887,2049.44,0.000468,42]
[330138328,1719036119932,2049.44,0.000468,42]
[330138329,1719036119968,2049.44,0.000468,42]
[330138330,1719036120002,2049.44,0.000468,42]
[330138331,1719036120074,2049.44,0.000468,42]
[330138333,1719036120140,2049.44,0.000468,42]
[330138336,1719036120209,2049.44,0.000468,42]
[330138338,1719036120265,2049.44,0.000468,42]
[330138340,1719036120321,2049.44,0.000468,42]
[330138344,1719036120424,2049.44,0.000468,42]
[330138347,1719036120490,2049.44,0.000468,42]
[330138349,1719036120552,2049.44,0.000468,42]
[330138351,1719036120588,2049.44,0.000468,42]
[330138353,1719036120626,2049.44,0.000468,42]
[330138356,1719036120687,2049.44,0.000468,42]
[330138358,1719036120743,2049.44,0.000468,42]
[330138361,1719036120806,2049.44,0.000468,42]
[330138363,1719036120862,2049.44,0.000468,42]
[330138366,1719036120927,2049.44,0.000468,42]
[330138369,1719036120988,2049.44,0.000492,45]
[330138371,1719036121043,2049.44,0.000492,45]
[330138374,1719036121104,2049.44,0.000492,45]
[330138377,1719036121165,2049.44,0.000492,45]
[330138380,1719036121247,2049.44,0.000492,45]
[330138382,1719036121291,2049.44,0.000492,45]
[330138384,1719036121333,2049.44,0.000492,45]
[330138387,1719036121411,2049.44,0.000492,45]
[330138390,1719036121495,2049.44,0.000492,45]
[330138393,1719036121595,2049.44,0.000492,45]
[330138395,1719036121626,2049.44,0.000492,45]
[330138397,1719036121668,2049.44,0.000492,45]
[330138400,1719036121737,2049.44,0.000492,45]
[330138402,1719036121775,2049.44,0.000492,45]
[330138405,1719036121840,2049.44,0.000492,45]
[330138407,1719036121908,2049.44,0.000492,45]
[330138410,1719036121968,2049.44,0.000492,45]
[330138413,1719036122031,2049.44,0.000492,45]
[330138415,1719036122089,2049.44,0.000492,45]
[330138551,1719036127688,2049.44,0.000492,45]
[330138655,1719036220581,1100.0,0.00026,120]
[330138971,1719036270759,463.0,0.00021259,62]
[330138980,1719036271291,463.0,0.00021249,62]
[330138994,1719036271894,463.0,0.00021239,62]
[330139008,1719036272419,463.0,0.0002349,62]
[330139021,1719036272986,463.0,0.0002348,62]
[330139036,1719036273566,463.0,0.0002347,62]
[330141476,1719036392873,185.0,0.00021259,62]
[330141496,1719036394054,185.0,0.00021249,62]
[330141511,1719036394716,185.0,0.00021239,62]
[330141522,1719036395214,185.0,0.0002349,62]
[330141533,1719036395742,185.0,0.0002348,62]
[330141551,1719036396584,185.0,0.0002347,62]
[330141879,1719036413220,160.106557,0.00023562,60]
[330141884,1719036413421,160.106557,0.00023562,70]
[330141889,1719036413636,160.106557,0.00023562,80]
[330141895,1719036413847,160.106557,0.00023562,90]
[330141900,1719036414053,160.106557,0.00023562,100]
[330141905,1719036414267,160.106557,0.00023562,110]
[330141908,1719036414473,160.106557,0.00023562,119]
[330142068,1719036512414,150.5,0.0001999,62]
[330142069,1719036512943,150.5,0.0001998,62]
[330142070,1719036513482,150.5,0.0001997,62]
[330142071,1719036514180,292.5,0.0002299,62]
[330142072,1719036597187,-509.16723921,0.0001414,2]
[330142073,1719036597231,-509.16723921,0.0001414,2]
[330142074,1719036597285,-397.10010477,0.0001414,2]
[330142158,1719036639427,-300.0,0.00014139,2]
[330142159,1719036639437,-300.0,0.00014139,2]
[330142160,1719036639447,-33160.05278951,0.0001414,2]
[330142161,1719036639457,-2455.66635817,0.00014881,2]
[330142162,1719036639467,-12247.492443,0.00014981,2]
[330142163,1719036639477,-420.0,0.00015488,2]
[330142164,1719036639487,-420.0,0.00015553,2]
[330142165,1719036639496,-279.055179,0.00015731,2]
[330142166,1719036639506,-4444.33860538,0.00015929,2]
[330142167,1719036639516,-3126.01610644,0.00016,2]
[330142168,1719036639526,-24900.0,0.00016012,2]
[330142169,1719036639535,-4444.33860536,0.00016922,2]
[330142170,1719036639545,-524.0,0.00016965,2]
[330142171,1719036639555,-587.0,0.00017108,2]
[330142172,1719036639564,-2455.66635811,0.00017206,2]
[330142173,1719036639574,-4444.33860536,0.00017915,2]
[330142174,1719036639583,-4021.66686329,0.00017999,2]
[330142175,1719036639593,-195.42618471,0.00018187,2]
[330142176,1719036639603,-154.82195475,0.00018707,2]
[330142177,1719036639613,-20000.0,0.00018707,2]
[330142179,1719036639623,-154.82195475,0.00018818,2]
[330142180,1719036639633,-155.0278566,0.00018818,2]
[330142181,1719036639642,-823.0,0.00018819,2]
[330142182,1719036639652,-4444.33860536,0.00018907,2]
[330142183,1719036639661,-154.82195475,0.00018999,2]
[330142184,1719036639670,-525.29379384,0.00019,2]
[330142185,1719036639679,-1752.0,0.00019008,2]
[330142186,1719036639688,-155.65664982,0.00019176,2]
[330142187,1719036639698,-990.33586488,0.00019176,2]
[330142188,1719036639707,-3064.32491129,0.00019177,4]
[330142189,1719036639717,-292.92115938,0.00019177,2]
[330142190,1719036639726,-500.0,0.00019178,2]
[330142191,1719036639736,-537.7936735,0.00019178,2]
[330142192,1719036639748,-500.0,0.00019178,2]
[330142193,1719036639758,-537.7936735,0.00019178,2]
[330142194,1719036639767,-537.7936735,0.00019178,2]
[330142195,1719036639777,-537.7936735,0.00019178,2]
[330142196,1719036639787,-537.7936735,0.00019178,2]
[330142197,1719036639796,-537.7936735,0.00019178,2]
[330142198,1719036639806,-537.7936735,0.00019178,2]
[330142199,1719036639817,-537.7936735,0.00019178,2]
[330142200,1719036639826,-537.7936735,0.00019178,2]
[330142201,1719036639835,-537.7936735,0.00019178,2]
[330142202,1719036639845,-537.7936735,0.00019178,2]
[330142203,1719036639854,-537.7936735,0.00019178,2]
[330142204,1719036639863,-537.7936735,0.00019178,2]
[330142205,1719036639872,-537.7936735,0.00019178,2]
[330142206,1719036639883,-537.7936735,0.00019178,2]
[330142207,1719036639892,-537.7936735,0.00019178,2]
[330142208,1719036639902,-537.7936735,0.00019178,2]
[330142209,1719036639911,-537.7936735,0.00019178,2]
[330142210,1719036639920,-537.7936735,0.00019178,2]
[330142211,1719036639930,-537.7936735,0.00019178,2]
[330142212,1719036639939,-537.7936735,0.00019178,2]
[330142213,1719036639949,-537.7936735,0.00019178,2]
[330142214,1719036639958,-537.7936735,0.00019178,2]
[330142215,1719036639968,-537.7936735,0.00019178,2]
[330142216,1719036639977,-537.7936735,0.00019178,2]
[330142217,1719036639988,-537.7936735,0.00019178,2]
[330142218,1719036639998,-537.7936735,0.00019178,2]
[330142219,1719036640007,-537.7936735,0.00019178,2]
[330142220,1719036640016,-537.7936735,0.00019178,2]
[330142221,1719036640026,-537.7936735,0.00019178,2]
[330142222,1719036640035,-537.7936735,0.00019178,2]
[330142223,1719036640044,-537.7936735,0.00019178,2]
[330142224,1719036640054,-537.7936735,0.00019178,2]
[330142226,1719036640063,-537.7936735,0.00019178,2]
[330142227,1719036640072,-537.7936735,0.00019178,2]
[330142228,1719036640082,-537.7936735,0.00019178,2]
[330142229,1719036640091,-537.7936735,0.00019178,2]
[330142230,1719036640100,-537.7936735,0.00019178,2]
[330142231,1719036640111,-537.7936735,0.00019178,2]
[330142232,1719036640120,-537.7936735,0.00019178,2]
[330142233,1719036640131,-537.7936735,0.00019178,2]
[330142234,1719036640140,-537.7936735,0.00019178,2]
[330142235,1719036640149,-537.7936735,0.00019178,2]
[330142236,1719036640159,-537.7936735,0.00019178,2]
[330142237,1719036640169,-537.7936735,0.00019178,2]
[330142238,1719036640179,-537.7936735,0.00019178,2]
[330142239,1719036640189,-537.7936735,0.00019178,2]
[330142240,1719036640199,-537.7936735,0.00019178,2]
[330142241,1719036640209,-537.7936735,0.00019178,2]
[330142242,1719036640219,-293.91216119,0.00019178,2]
[330142243,1719036640229,-500.0,0.00019178,2]
[330142244,1719036640238,-500.0,0.00019178,2]
[330142245,1719036640248,-368.09393043,0.00019178,2]
[330142246,1719036640258,-655.66417305,0.00019178,2]
[330142248,1719036640268,-655.66417305,0.00019178,2]
[330142249,1719036640277,-655.66417305,0.00019178,2]
[330142250,1719036640286,-655.66417305,0.00019178,2]
[330142251,1719036640295,-655.66417305,0.00019178,2]
[330142252,1719036640305,-655.66417305,0.00019178,2]
[330142253,1719036640314,-655.66417305,0.00019178,2]
[330142254,1719036640324,-655.66417305,0.00019178,2]
[330142255,1719036640333,-655.66417305,0.00019178,2]
[330142256,1719036640343,-655.66417305,0.00019178,2]
[330142257,1719036640353,-655.66417305,0.00019178,2]
[330142258,1719036640363,-655.66417305,0.00019178,2]
[330142259,1719036640372,-655.66417305,0.00019178,2]
[330142260,1719036640384,-655.66417305,0.00019178,2]
[330142261,1719036640393,-655.66417305,0.00019178,2]
[330142262,1719036640404,-655.66417305,0.00019178,2]
[330142263,1719036640413,-655.66417305,0.00019178,2]
[330142264,1719036640422,-655.66417305,0.00019178,2]
[330142265,1719036640434,-655.66417305,0.00019178,2]
[330142266,1719036640444,-655.66417305,0.00019178,2]
[330142268,1719036640454,-655.66417305,0.00019178,2]
[330142269,1719036640464,-655.66417305,0.00019178,2]
[330142271,1719036640473,-655.66417305,0.00019178,2]
[330142272,1719036640483,-655.66417305,0.00019178,2]
[330142273,1719036640492,-655.66417305,0.00019178,2]
[330142274,1719036640502,-655.66417305,0.00019178,2]
[330142275,1719036640511,-655.66417305,0.00019178,2]
[330142276,1719036640521,-655.66417305,0.00019178,2]
[330142277,1719036640530,-655.66417305,0.00019178,2]
[330142279,1719036640540,-655.66417305,0.00019178,2]
[330142281,1719036640550,-649.10753132,0.00019178,2]
[330142283,1719036640559,-649.10753132,0.00019178,2]
[330142284,1719036640569,-649.10753132,0.00019178,2]
[330142285,1719036640579,-649.10753132,0.00019178,2]
[330142286,1719036640588,-649.10753132,0.00019178,2]
[330142287,1719036640598,-649.10753132,0.00019178,2]
[330142288,1719036640608,-649.10753132,0.00019178,2]
[330142289,1719036640617,-649.10753132,0.00019178,2]
[330142290,1719036640627,-649.10753132,0.00019178,2]
[330142292,1719036640637,-649.10753132,0.00019178,2]
[330142294,1719036640646,-436.40696925,0.00019178,2]
[330142296,1719036640656,-500.0,0.00019178,2]
[330142297,1719036640666,-502.36350839,0.00019178,2]
[330142298,1719036640676,-539.55354953,0.00019178,2]
[330142299,1719036640685,-500.0,0.00019178,2]
[330142300,1719036640694,-431.84116032,0.00019178,2]
[330142301,1719036640704,-500.0,0.00019178,2]
[330142302,1719036640713,-500.0,0.00019178,2]
[330142303,1719036640722,-500.0,0.00019178,2]
[330142304,1719036640732,-500.0,0.00019178,2]
[330142305,1719036640742,-500.0,0.00019178,2]
[330142306,1719036640755,-634.55335118,0.00019178,2]
[330142307,1719036640764,-500.0,0.00019178,2]
[330142308,1719036640773,-500.0,0.00019178,2]
[330142309,1719036640782,-500.0,0.00019178,2]
[330142310,1719036640793,-500.0,0.00019178,2]
[330142311,1719036640802,-500.0,0.00019178,2]
[330142312,1719036640812,-500.0,0.00019178,2]
[330142313,1719036640822,-500.0,0.00019178,2]
[330142314,1719036640832,-500.0,0.00019178,2]
[330142315,1719036640843,-500.0,0.00019178,2]
[330142316,1719036640852,-579.92919783,0.00019178,2]
[330142317,1719036640862,-500.0,0.00019178,2]
[330142318,1719036640873,-414.80857907,0.00019178,2]
[330142319,1719036640886,-151.591465,0.00019178,2]
[330142320,1719036640895,-151.00000026,0.00019178,2]
[330142321,1719036640905,-434.0221122,0.00019178,2]
[330142322,1719036640915,-159.03956,0.00019178,2]
[330142323,1719036640924,-154.82195475,0.0001948,2]
[330142324,1719036640934,-179.62501621,0.00019481,2]
[330142325,1719036640944,-877.79848349,0.00019544,2]
[330142326,1719036640954,-346.1,0.00019779,2]
[330142327,1719036640964,-346.1,0.00019779,2]
[330142328,1719036640973,-175.93554965,0.00019899,2]
[330142329,1719036640983,-4444.33860536,0.000199,2]
[330142330,1719036640993,-82601.428247,0.0002,2]
[330142331,1719036641003,-252.55106903,0.0002,2]
[330142332,1719036641013,-181.55716895,0.0002,2]
[330142333,1719036641025,-293.90529376,0.0002,2]
[330142334,1719036641036,-151.0,0.0002,2]
[330142335,1719036641046,-151.0,0.0002,2]
[330142336,1719036641055,-151.0,0.0002,2]
[330142337,1719036641066,-346.1,0.0002,2]
[330142338,1719036641077,-346.1,0.0002,2]
[330142339,1719036641086,-4837.64567885,0.0002,2]
[330142340,1719036641096,-811.17084566,0.0002,2]
[330142341,1719036641105,-153.243,0.00020094,2]
[330142342,1719036641115,-292.90827578,0.000207,2]
[330142343,1719036641124,-1152.0,0.00020701,2]
[330142344,1719036641133,-373.5640515,0.00020858,2]
[330142345,1719036641143,-3181.08769922,0.00021,7]
[330142346,1719036641153,-750.0,0.00021096,2]
[330142347,1719036641162,-166.995851,0.00021269,2]
[330142348,1719036641172,-170.650679,0.00021269,2]
[330142349,1719036641182,-188.747835,0.00021269,2]